bitfinex-derivatives/quotes_ETHF0:USTF0_20251116
["timestamp","ask_amount","ask_price","bid_price","bid_amount"]
[1763257233622,0.1397,3140.0,3139.8,3.2078]
[1763257233827,0.1397,3140.0,3138.8,3.2078]
[1763257234034,0.0346,3138.7,3138.0,3.94748254]
[1763257234231,3.2078,3139.7,3138.6,3.2078]
[1763257234432,3.2078,3139.7,3138.0,3.94748254]
[1763257234433,0.00478071,3139.5,3139.1,3.2078]
[1763257234635,0.00707341,3139.5,3139.1,0.00332204]
[1763257235531,2.41055867,3139.5,3139.1,0.00332204]
[1763257235729,0.00707341,3139.5,3139.1,0.00332204]
[1763257237431,2.41055867,3139.5,3139.1,0.00332204]
[1763257237628,2.40348526,3139.4,3139.1,0.00332204]
[1763257239026,3.2078,3140.8,3139.2,6.0]
[1763257239242,3.28098395,3140.8,3140.1,3.2078]
[1763257239431,2.3917993,3140.7,3140.1,3.2078]
[1763257240123,0.00819129,3140.7,3140.5,3.2078]
[1763257241036,2.3917993,3140.6,3140.5,5.99857822]
[1763257241339,3.2078,3140.8,3140.1,0.00478071]
[1763257241532,3.2078,3140.2,3140.1,0.00478071]
[1763257241839,3.28098395,3140.2,3140.1,0.00478071]
[1763257242030,3.21129345,3140.2,3140.1,0.00478071]
[1763257242231,0.00349345,3140.2,3140.1,0.00478071]
[1763257242538,3.2844774,3140.2,3140.1,0.00478071]
[1763257242938,0.1397,3140.1,3139.7,2.23218358]
[1763257243137,3.2078,3139.8,3139.7,2.23218358]
[1763257243332,3.2078,3139.8,3139.7,3.23508401]
[1763257243539,3.28098395,3139.8,3139.7,3.23407069]
[1763257243839,3.28098395,3139.8,3139.7,1.00290043]
[1763257244735,9.28098395,3139.8,3139.4,0.00478071]
[1763257244937,0.1397,3139.2,3139.1,0.00332204]
[1763257245240,0.21288395,3139.2,3139.1,0.00332204]
[1763257245643,3.2078,3139.4,3139.1,0.00332204]
[1763257246244,3.2078,3139.8,3139.1,0.00332204]
[1763257246646,3.2078,3139.8,3139.6,1.11521931]
[1763257246840,3.2078,3139.8,3139.1,0.00332204]
[1763257247145,3.2078,3139.8,3139.2,3.2078]
[1763257248231,3.2078,3139.8,3139.1,0.00332204]
[1763257248232,0.1397,3140.1,3139.7,3.2078]
[1763257249540,0.07318395,3140.0,3139.7,3.2078]
[1763257249741,0.00349345,3140.2,3139.7,3.2078]
[1763257250147,0.1397,3140.0,3139.8,2.78514676]
[1763257250443,0.1397,3140.0,3139.7,3.2078]
[1763257250648,0.00349345,3140.2,3139.7,3.2078]
[1763257250845,0.00349345,3140.2,3139.8,2.78514676]
[1763257251253,0.00478071,3140.5,3140.1,3.2078]
[1763257251442,0.00478071,3140.5,3140.1,5.99294676]
[1763257251650,3.2078,3140.8,3140.2,2.78514676]
[1763257251851,3.2078,3140.8,3140.4,2.78514676]
[1763257252151,3.21011525,3140.8,3140.4,2.78514676]
[1763257252354,3.21011525,3140.8,3140.5,2.78514676]
[1763257252551,3.2832992,3140.8,3140.5,2.78514676]
[1763257252752,3.2832992,3140.8,3140.4,2.78514676]
[1763257253145,3.2832992,3140.8,3140.5,2.78514676]
[1763257253456,3.2832992,3140.8,3140.3,0.00478071]
[1763257253457,3.21011525,3140.8,3140.6,0.06000395]
[1763257253648,0.07318395,3140.7,3140.3,0.00478071]
[1763257253845,3.2078,3140.4,3140.3,0.00478071]
[1763257254048,3.28098395,3140.4,3140.3,0.00478071]
[1763257254442,3.2078,3140.4,3140.3,0.00478071]
[1763257254654,0.00231525,3140.8,3140.3,6.00478071]
[1763257254846,0.00231525,3140.8,3140.4,3.2078]
[1763257255046,0.00231525,3140.8,3140.4,7.15528254]
[1763257255454,3.2078,3140.9,3140.6,3.94748254]
[1763257255651,0.00478071,3141.0,3140.6,3.94748254]
[1763257255849,0.00478071,3141.0,3140.5,3.94748254]
[1763257256158,3.2078,3142.1,3140.9,7.15528254]
[1763257256455,0.07318395,3141.7,3141.4,3.2078]
[1763257256652,0.07318395,3141.6,3141.4,3.21057804]
[1763257256856,0.14266232,3141.9,3141.5,0.9307526]
[1763257257052,0.07318395,3141.7,3141.6,0.9307526]
[1763257257246,0.14266232,3141.9,3141.6,0.9307526]
[1763257257444,0.14266232,3141.9,3141.7,4.87823514]
[1763257257445,0.00296232,3141.9,3141.7,4.87823514]
[1763257257642,0.07614627,3141.9,3141.8,0.9307526]
[1763257257855,0.07614627,3141.9,3141.8,4.87823514]
[1763257257856,0.00296232,3141.9,3141.8,4.87823514]
[1763257258246,0.00296232,3141.9,3141.8,0.9307526]
[1763257258448,0.00478071,3142.0,3141.8,0.9307526]
[1763257258648,0.00478071,3142.0,3141.9,4.89268583]
[1763257259055,0.00478071,3142.0,3141.9,0.9307526]
[1763257259258,2.83047528,3142.1,3141.9,0.9307526]
[1763257259463,0.00355193,3142.1,3142.0,0.9307526]
[1763257259657,3.2078,3143.0,3142.0,0.9307526]
[1763257259958,0.07318395,3142.7,3142.4,5.63926077]
[1763257260163,0.00477296,3142.9,3142.5,0.9307526]
[1763257260457,0.0346,3143.7,3142.4,5.63926077]
[1763257260458,0.0346,3143.7,3142.6,4.1385526]
[1763257260658,1.52364147,3143.8,3143.4,5.63926077]
[1763257260850,1.52364147,3143.8,3143.7,3.97783719]
[1763257261053,3.2078,3144.2,3143.7,4.90858979]
[1763257261358,3.2078,3144.2,3143.6,0.00477296]
[1763257261359,0.07318395,3143.8,3143.6,0.00477296]
[1763257261546,0.00477296,3144.3,3143.7,0.86703553]
[1763257261749,0.9398,3146.4,3143.6,0.00876148]
[1763257261750,3.2078,3145.2,3144.2,7.17759129]
[1763257261958,3.2078,3145.2,3144.3,0.86703553]
[1763257262157,3.2078,3145.2,3145.0,2.26234497]
[1763257262359,3.2078,3145.2,3145.1,0.86703553]
[1763257262545,0.00249119,3145.2,3145.1,0.86703553]
[1763257262750,0.07567514,3145.2,3145.1,0.86703553]
[1763257262950,0.00249119,3145.2,3145.1,0.86703553]
[1763257263146,0.00249119,3145.2,3145.1,3.12354109]
[1763257263354,0.00249119,3145.2,3145.1,0.86703553]
[1763257264258,0.00249119,3145.2,3145.1,3.11946865]
[1763257264462,0.00477296,3145.5,3145.1,0.86703553]
[1763257264663,0.00477296,3145.5,3145.4,3.2078]
[1763257264865,0.00477296,3145.5,3145.4,4.07483553]
[1763257265561,4.1476,3146.4,3145.4,10.07483553]
[1763257265759,0.9398,3147.2,3146.3,3.2078]
[1763257266063,3.2078,3147.4,3146.8,3.2078]
[1763257266275,3.2078,3147.9,3147.2,3.2078]
[1763257266566,0.00713937,3147.9,3147.3,0.86703553]
[1763257266755,0.00713937,3147.9,3147.4,0.86703553]
[1763257266958,0.00713937,3147.9,3147.5,0.86703553]
[1763257267161,3.2078,3147.6,3146.4,4.89364225]
[1763257267359,3.2078,3147.1,3146.4,3.2078]
[1763257267862,0.07318395,3146.5,3146.4,3.2078]
[1763257268264,0.07318395,3146.5,3146.4,3.21073598]
[1763257268864,0.9398,3147.2,3146.4,3.21073598]
[1763257269168,3.2078,3147.1,3146.4,3.21073598]
[1763257269459,0.07318395,3146.5,3146.4,3.21073598]
[1763257269961,0.07318395,3146.5,3146.4,0.00293598]
[1763257270858,0.9398,3146.4,3146.1,0.00477296]
[1763257271060,0.07318395,3146.2,3146.1,0.00477296]
[1763257271866,0.07318395,3146.2,3146.1,0.00875536]
[1763257272166,3.2078,3146.7,3146.1,0.00875536]
[1763257272362,3.2078,3147.1,3146.1,0.00875536]
[1763257272562,3.2078,3147.1,3146.4,3.2078]
[1763257272764,0.07318395,3146.6,3146.1,0.00875536]
[1763257272962,0.07318395,3146.6,3146.5,3.2078]
[1763257273775,6.07318395,3146.6,3146.1,0.00875536]
[1763257273964,3.2078,3146.2,3145.1,3.2078]
[1763257274165,3.2078,3146.2,3144.4,5.67]
[1763257274166,3.2078,3146.3,3145.5,3.2078]
[1763257274369,0.9741,3146.4,3145.1,3.2078]
[1763257274370,3.2078,3145.8,3145.1,3.2078]
[1763257274763,0.07318395,3145.7,3145.1,3.2078]
[1763257275060,0.00477296,3145.7,3145.1,0.00877812]
[1763257275770,3.2078,3146.3,3145.6,1.0447]
[1763257275970,3.28098395,3146.3,3145.6,1.0447]
[1763257276273,3.2078,3146.3,3145.6,1.0447]
[1763257276462,0.9398,3147.2,3145.8,3.2078]
[1763257276666,3.2078,3147.1,3146.2,3.2078]
[1763257276868,0.00477296,3147.0,3146.3,0.00477296]
[1763257277569,0.07318395,3146.5,3146.3,0.00477296]
[1763257278072,0.00477296,3147.0,3146.3,0.00477296]
[1763257278269,0.07318395,3146.5,3146.3,0.00477296]
[1763257278570,0.07318395,3146.4,3146.3,0.00477296]
[1763257279972,1.13438395,3146.4,3146.3,0.00477296]
[1763257281176,0.07318395,3146.4,3146.3,0.00477296]
[1763257282072,1.13438395,3146.4,3146.3,0.00477296]
[1763257282365,7.13438395,3146.4,3145.3,0.78503324]
[1763257282571,3.2078,3145.8,3145.1,0.00400516]
[1763257282881,3.2078,3145.8,3145.2,0.78512593]
[1763257283070,3.2078,3145.8,3145.3,0.78512593]
[1763257283278,0.07318395,3145.5,3145.4,0.78512593]
[1763257283474,0.07698827,3145.5,3145.4,0.78512593]
[1763257284777,0.07318395,3145.2,3144.8,1.12331876]
[1763257285079,3.2078,3144.9,3143.6,1.68584225]
[1763257285277,1.0612,3145.1,3143.5,3.2078]
[1763257285278,0.07318395,3143.9,3143.7,2.47379966]
[1763257285480,3.2078,3144.6,3143.8,2.47379966]
[1763257285775,3.2078,3144.2,3143.9,0.78795741]
[1763257286085,3.2078,3144.2,3143.9,1e-08]
[1763257286973,0.00477296,3144.5,3143.9,1e-08]
[1763257287279,0.07318395,3144.1,3144.0,1.68584225]
[1763257287681,3.28098395,3144.1,3143.9,1e-08]
[1763257287877,3.2078,3144.1,3143.9,1e-08]
[1763257288072,0.07318395,3144.0,3143.9,1e-08]
[1763257289281,0.07318395,3144.0,3143.9,1.70120706]
[1763257290179,0.07318395,3144.0,3143.9,1e-08]
[1763257290780,0.07318395,3144.0,3143.9,1.70120706]
[1763257291178,0.07318395,3144.0,3143.9,1.70014337]
[1763257291376,0.07318395,3144.0,3143.9,1e-08]
[1763257291575,0.07318395,3144.0,3143.9,1.70053566]
[1763257292775,1.06948395,3144.0,3143.9,1e-08]
[1763257294979,6.0,3143.9,3142.8,1.69855295]
[1763257295288,3.28098395,3142.9,3141.9,3.2078]
[1763257295481,3.2078,3142.5,3141.9,3.2078]
[1763257295784,0.07318395,3142.4,3141.9,3.2078]
[1763257295990,0.07679873,3142.4,3141.9,3.21188413]
[1763257296176,0.00361478,3142.4,3141.9,3.21188413]
[1763257296375,0.07679873,3142.4,3141.9,0.00408413]
[1763257297082,0.07318395,3142.0,3141.9,0.00408413]
[1763257297287,0.07318395,3142.0,3141.8,0.00477296]
[1763257297486,0.07318395,3141.9,3141.8,0.00477296]
[1763257297686,0.07318395,3141.9,3140.7,3.2078]
[1763257297885,0.07318395,3141.2,3140.7,3.2078]
[1763257298182,0.07318395,3141.2,3140.8,0.77866233]
[1763257298381,0.07318395,3141.2,3140.9,0.77866233]
[1763257298585,0.07318395,3141.2,3141.0,0.77866233]
[1763257298779,0.07318395,3141.2,3141.1,0.77866233]
[1763257299579,0.07318395,3141.2,3140.7,0.00781509]
[1763257299888,3.2078,3140.9,3140.8,0.77710094]
[1763257300081,3.28098395,3140.9,3140.8,0.77710094]
[1763257300282,3.2078,3140.9,3140.8,0.77710094]
[1763257300589,3.2078,3140.9,3140.7,0.00781509]
[1763257300987,0.07318395,3140.8,3140.7,0.00781509]
[1763257301989,0.07318395,3140.8,3139.6,3.2078]
[1763257302185,3.2078,3140.2,3139.5,4.2122]
[1763257302985,3.2166237,3140.2,3139.5,4.21541483]
[1763257303491,3.2166237,3140.2,3139.5,1.00761483]
[1763257304590,3.2166237,3140.2,3139.5,10.21541483]
[1763257304778,3.2078,3141.6,3140.0,3.2078]
[1763257304983,0.07318395,3141.3,3140.9,1.0044]
[1763257305287,0.07318395,3141.0,3140.8,3.2078]
[1763257305481,3.2078,3141.6,3140.8,3.2078]
[1763257305682,0.07318395,3141.2,3140.9,0.00477296]
[1763257306086,0.07318395,3141.0,3140.9,0.00477296]
[1763257306291,3.28098395,3141.0,3140.9,0.00477296]
[1763257306587,3.28098395,3141.0,3139.8,3.2078]
[1763257306789,0.07318395,3140.5,3140.2,4.2122]
[1763257306991,0.07318395,3140.5,3139.8,3.2078]
[1763257307284,3.2078,3141.0,3140.2,3.2078]
[1763257307490,0.07318395,3140.4,3140.2,3.2078]
[1763257307785,0.07318395,3140.3,3139.8,3.2078]
[1763257307991,3.2078,3140.6,3139.8,3.2078]
[1763257308292,0.07318395,3140.3,3139.8,3.2078]
[1763257308896,3.2078,3140.6,3139.8,3.2078]
[1763257309094,0.07318395,3140.5,3139.8,3.2078]
[1763257309880,3.2078,3140.6,3139.8,3.2078]
[1763257310081,0.9963,3140.9,3139.5,1.00761483]
[1763257310082,3.2078,3140.2,3139.5,2.60271483]
[1763257310277,0.07318395,3140.3,3140.2,1.5951]
[1763257310481,3.2078,3140.6,3139.5,4.21541483]
[1763257310685,0.07318395,3140.1,3139.5,4.21541483]
[1763257311193,0.07318395,3139.9,3139.5,4.21541483]
[1763257311993,3.2078,3140.6,3139.5,4.21541483]
[1763257312290,1.6266,3139.6,3139.5,0.00321483]
[1763257312885,1.6266,3139.0,3138.7,0.03186083]
[1763257313293,0.07318395,3138.8,3138.7,0.03186083]
[1763257313684,0.0771915,3138.8,3138.7,0.03598204]
[1763257314291,0.0771915,3138.8,3138.7,0.88211507]
[1763257316898,3.2078,3139.3,3138.8,1.0044]
[1763257317093,3.21257296,3139.9,3139.2,0.8465189]
[1763257317289,0.00477296,3139.9,3139.5,1.8509189]
[1763257317591,0.00477296,3139.9,3139.8,3.2078]
[1763257317789,3.2078,3140.9,3139.8,3.2078]
[1763257317989,0.07318395,3140.7,3140.3,3.2078]
[1763257318293,3.2078,3140.9,3140.4,0.8465189]
[1763257318483,3.2078,3141.3,3140.7,3.2078]
[1763257318683,0.07318395,3141.3,3141.1,3.2078]
[1763257318884,0.0027802,3141.3,3141.1,3.21024443]
[1763257319090,0.07318395,3141.2,3141.1,3.21024443]
[1763257319291,0.0027802,3141.3,3141.1,3.21024443]
[1763257319590,0.07318395,3141.2,3141.1,0.00244443]
[1763257321985,0.4909,3140.9,3140.4,0.8465189]
[1763257322296,0.07318395,3140.5,3140.4,0.8465189]
[1763257322892,3.2105802,3141.3,3140.4,0.00351832]
[1763257323091,3.2078,3140.9,3140.5,0.85049585]
[1763257323397,3.2078,3140.9,3140.6,0.85049585]
[1763257323891,0.07318395,3140.7,3140.6,0.85049585]
[1763257324096,0.07318395,3140.7,3140.5,1.12869186]
[1763257324291,3.2105802,3141.3,3140.5,1.69341373]
[1763257324595,1.5775,3141.1,3141.0,0.85303323]
[1763257324792,0.00477296,3141.5,3141.2,1.6281]
[1763257324996,3.2078,3142.2,3141.4,1.6281]
[1763257325197,4.7853,3141.9,3141.7,1.13702295]
[1763257325394,1.5775,3141.8,3141.7,1.13702295]
[1763257325697,1.65068395,3141.8,3141.7,1.13702295]
[1763257325896,0.00400679,3141.8,3141.6,1.70553443]
[1763257326303,0.00400679,3141.8,3141.6,3.16905971]
[1763257326501,3.2078,3142.7,3141.6,0.9169]
[1763257326802,3.2078,3142.7,3142.5,1.13824165]
[1763257326991,3.2078,3142.7,3142.6,0.85368085]
[1763257327189,3.2078,3142.7,3142.5,1.13824165]
[1763257327190,3.2078,3143.1,3142.5,1.13824165]
[1763257327393,3.2078,3143.1,3142.7,0.8534356]
[1763257327700,3.21046267,3143.1,3143.0,0.9169]
[1763257327901,0.00266267,3143.1,3143.0,0.9169]
[1763257328108,3.2078,3143.7,3143.1,6.0]
[1763257328297,3.2078,3143.7,3143.6,1.13574695]
[1763257328498,3.28098395,3143.7,3143.6,1.13574695]
[1763257329193,3.28400384,3143.7,3143.6,0.85066893]
[1763257329388,3.28400384,3143.7,3142.7,0.00282178]
[1763257329389,0.07318395,3143.3,3142.7,0.00282178]
[1763257329595,3.2078,3143.2,3142.7,0.00282178]
[1763257329798,0.07318395,3142.8,3142.7,0.00282178]
[1763257330203,3.2078,3143.2,3142.7,0.00282178]
[1763257330702,0.07318395,3142.8,3142.7,0.00282178]
[1763257331197,3.28098395,3142.8,3142.7,0.00282178]
[1763257331399,3.28098395,3142.8,3142.6,0.00477296]
[1763257331705,0.07318395,3142.7,3142.0,3.2078]
[1763257332001,3.2078,3142.8,3142.0,3.2078]
[1763257332305,0.07318395,3142.3,3142.0,3.21113206]
[1763257332697,3.2078,3142.8,3142.0,3.21113206]
[1763257332898,0.07318395,3142.3,3142.0,3.21113206]
[1763257333405,3.2078,3143.3,3142.0,3.21113206]
[1763257333594,3.2078,3142.9,3142.4,3.2078]
[1763257334001,0.07318395,3142.5,3142.4,3.2078]
[1763257336903,1.34908395,3142.5,3142.0,0.00333206]
[1763257337110,4.55688395,3142.1,3142.0,0.00333206]
[1763257338510,1.2726,3141.9,3141.8,0.00477296]
[1763257338703,0.07318395,3141.9,3140.9,3.2078]
[1763257338904,3.2078,3141.9,3140.9,4.1801]
[1763257339212,0.07318395,3141.2,3140.9,4.1801]
[1763257339402,0.07318395,3141.2,3140.9,4.18311844]
[1763257339403,0.07674136,3141.2,3140.9,4.18311844]
[1763257339598,0.00355741,3141.2,3140.9,4.18311844]
[1763257340913,3.2078,3142.1,3140.9,4.18311844]
[1763257341211,0.07318395,3141.8,3141.5,3.2078]
[1763257341408,3.2078,3142.1,3141.6,0.9723]
[1763257341606,0.00477296,3142.4,3141.6,0.9723]
[1763257341807,0.07318395,3142.1,3141.6,0.9723]
[1763257342106,0.00729125,3142.4,3141.6,0.9723]
[1763257342309,0.0804752,3142.4,3141.6,0.9723]
[1763257342506,0.0804752,3142.4,3142.3,0.9723]
[1763257342809,0.00729125,3142.4,3142.3,0.9723]
[1763257343902,0.0804752,3142.4,3141.9,3.2078]
[1763257344105,0.00729125,3142.4,3141.9,3.2078]
[1763257344805,0.07318395,3142.2,3141.9,3.2078]
[1763257345306,0.00729125,3142.4,3141.9,3.2078]
[1763257345497,0.07318395,3142.1,3141.9,3.2078]
[1763257345901,0.00729125,3142.4,3141.9,3.2078]
[1763257346109,0.07318395,3142.1,3141.9,3.2078]
[1763257346509,0.00729125,3142.4,3141.9,3.2078]
[1763257346906,1.2726,3142.0,3141.9,3.2078]
[1763257347107,1.34578395,3142.0,3141.9,3.2078]
[1763257347502,9.28098395,3142.0,3140.9,3.25042864]
[1763257347704,0.5616,3142.3,3140.9,3.25042864]
[1763257347705,3.28098395,3141.0,3140.9,0.97531844]
[1763257347901,0.07318395,3141.0,3140.9,0.97531844]
[1763257348106,3.2078,3141.4,3140.9,2.58491844]
[1763257348307,3.2078,3141.4,3141.3,1.6096]
[1763257348506,3.2078,3141.9,3141.6,0.9787]
[1763257348715,0.07318395,3141.8,3141.7,1.6592]
[1763257349117,3.2078,3142.2,3141.7,1.6592]
[1763257349413,0.07318395,3141.8,3141.7,1.6592]
[1763257349815,3.2078,3142.2,3141.7,1.6592]
[1763257350112,0.07318395,3141.8,3141.6,0.9787]
[1763257350301,0.07318395,3141.7,3141.6,2.6379]
[1763257350705,0.07318395,3141.7,3141.6,0.9787]
[1763257351715,0.07318395,3141.7,3141.6,4.1865]
[1763257352709,0.07318395,3141.7,3141.1,3.2078]
[1763257352915,3.2078,3141.8,3141.1,3.2078]
[1763257353308,0.07318395,3141.2,3141.1,3.2078]
[1763257354003,3.2078,3141.8,3141.7,1.6592]
[1763257354414,0.00729125,3142.4,3141.6,0.9787]
[1763257354415,0.00729125,3142.4,3142.2,0.9787]
[1763257354806,0.00729125,3142.4,3142.3,1.6592]
[1763257356110,3.2078,3142.7,3142.6,1.6592]
[1763257356328,3.2078,3143.3,3142.6,4.867]
[1763257356515,4.985,3143.7,3143.2,1.6592]
[1763257356516,3.2078,3143.7,3143.2,1.6592]
[1763257356714,3.2078,3143.7,3143.6,1.6592]
[1763257357016,3.28098395,3143.7,3143.0,3.2078]
[1763257357317,0.07318395,3143.3,3143.2,1.6592]
[1763257357508,0.00795988,3143.7,3143.6,1.6592]
[1763257357713,0.00795988,3143.7,3143.4,3.2078]
[1763257357714,0.07318395,3143.5,3143.4,3.2078]
[1763257357913,0.07318395,3143.5,3143.4,4.867]
[1763257358711,0.00795988,3143.7,3143.4,4.867]
[1763257359006,0.00795988,3143.7,3143.6,1.6592]
[1763257359207,0.00795988,3143.7,3143.4,3.2078]
[1763257359615,0.00795988,3143.7,3143.6,1.6592]
[1763257362017,1.6387,3143.5,3143.4,3.2078]
[1763257362319,1.80668903,3145.2,3143.4,4.1865]
[1763257362320,3.2078,3144.8,3143.4,4.1865]
[1763257362519,1.69023284,3146.9,3144.9,3.2078]
[1763257362724,0.9183,3147.6,3146.8,3.2078]
[1763257362912,0.9183,3147.6,3146.9,0.81361262]
[1763257363531,0.69734709,3147.0,3146.9,0.00261171]
[1763257363730,0.00294709,3147.0,3146.9,1.96512801]
[1763257364018,0.00294709,3147.0,3146.9,2.5336821]
[1763257364219,0.00294709,3147.0,3146.9,0.82801985]
[1763257365318,0.00294709,3147.0,3146.6,0.00477296]
[1763257365518,0.00294709,3147.0,3146.8,3.2078]
[1763257366222,0.00294709,3147.0,3146.8,3.21051081]
[1763257366721,0.00294709,3147.0,3146.8,3.72564081]
[1763257367428,0.00294709,3147.0,3146.8,3.21051081]
[1763257372123,0.00294709,3147.0,3146.8,3.72565081]
[1763257372517,0.00294709,3147.0,3146.8,3.21051081]
[1763257374940,0.00294709,3147.0,3145.8,1.12971095]
[1763257374941,0.9183,3146.5,3146.4,2.8114676]
[1763257375631,0.9183,3146.5,3145.6,3.2078]
[1763257375632,6.9183,3146.5,3145.6,3.2078]
[1763257375836,0.9183,3146.5,3145.6,3.2078]
[1763257376131,3.2078,3146.7,3146.1,3.2078]
[1763257376328,0.00294709,3147.0,3146.9,0.51512]
[1763257379340,0.00477296,3147.3,3147.2,0.51507]
[1763257379529,0.00477296,3147.3,3147.2,2.40747]
[1763257380132,0.00477296,3147.3,3147.2,2.89387]
[1763257380336,0.00782365,3147.3,3147.2,2.73217]
[1763257380531,3.2078,3148.1,3147.6,0.515]
[1763257381032,3.2078,3148.1,3147.5,3.2078]
[1763257381033,1.7902,3147.6,3147.5,3.2078]
[1763257381229,2.8359,3147.2,3146.7,3.2078]
[1763257381634,2.83860976,3147.2,3146.7,3.2078]
[1763257382337,1.7902,3146.8,3146.7,3.2078]
[1763257382734,4.25620976,3147.2,3146.7,3.2078]
[1763257383533,1.7902,3146.7,3146.6,0.00476516]
[1763257384137,7.7902,3146.7,3146.6,0.00476516]
[1763257385333,3.2078,3146.8,3146.6,0.00476516]
[1763257385537,4.25620976,3147.2,3146.6,0.00476516]
[1763257386139,3.21050976,3147.2,3147.1,1.8924]
[1763257386439,3.21050976,3147.2,3147.1,0.81827404]
[1763257386942,6.04640976,3147.2,3147.1,0.81827404]
[1763257388239,0.00270976,3147.2,3147.1,0.81827404]
[1763257388645,2.83860976,3147.2,3147.1,0.81827404]
[1763257391052,0.00270976,3147.2,3147.1,3.22576404]
[1763257391347,3.2078,3147.7,3147.6,2.40741]
[1763257391643,3.2078,3147.7,3147.6,3.22568404]
[1763257392044,3.2078,3147.7,3147.6,0.81827404]
[1763257392348,0.00476516,3148.0,3147.7,0.51499]
[1763257392552,0.00889295,3148.0,3147.8,3.66979349]
[1763257392846,1.79909295,3148.0,3147.9,0.81827404]
[1763257393046,1.79909295,3148.0,3147.9,0.82197757]
[1763257394339,0.00889295,3148.0,3147.9,0.82197757]
[1763257394847,0.00889295,3148.0,3147.9,3.07613757]
[1763257395043,0.00889295,3148.0,3147.9,0.82197757]
[1763257395948,1.76979295,3148.0,3147.9,0.82197757]
[1763257398446,1.7609,3147.9,3147.8,1.70898113]
[1763257398747,1.7609,3147.3,3146.9,2.27880707]
[1763257398950,1.7609,3147.3,3146.8,3.2078]
[1763257399150,1.7609,3147.3,3146.7,2.27880707]
[1763257399350,1.7609,3146.8,3146.6,2.28357223]
[1763257399546,3.2078,3147.5,3146.6,0.52302778]
[1763257399751,1.7609,3147.4,3147.2,1.13953145]
[1763257400754,1.7609,3147.2,3147.1,1.13953145]
[1763257401153,1.7609,3147.2,3146.6,0.00785778]
[1763257401154,6.0,3147.2,3147.0,0.85473745]
[1763257401356,4.9687,3147.1,3147.0,0.85473745]
[1763257402054,3.2078,3147.1,3147.0,0.85473745]
[1763257402263,3.2078,3147.1,3146.6,0.52301778]
[1763257402459,3.2078,3147.1,3147.0,0.85461598]
[1763257402663,4.9687,3147.1,3146.6,0.00785778]
[1763257403763,4.9687,3147.1,3147.0,0.85454873]
[1763257404456,1.7609,3146.7,3146.6,0.00785778]
[1763257404659,4.9687,3146.7,3146.6,0.00785778]
[1763257405359,4.9687,3146.7,3145.9,3.2078]
[1763257405360,10.9687,3146.7,3145.9,3.2078]
[1763257405655,1.7609,3146.0,3145.9,3.2078]
[1763257405863,1.0042,3146.4,3145.5,3.2078]
[1763257405864,1.7609,3145.6,3145.5,3.2078]
[1763257406053,1.7609,3145.6,3145.0,3.2078]
[1763257406454,1.76895265,3145.6,3145.0,3.21573226]
[1763257406857,1.7609,3145.1,3145.0,0.00793226]
[1763257410859,3.2078,3145.3,3145.0,0.00793226]
[1763257412255,1.6773,3145.1,3145.0,0.00793226]
[1763257416375,1.6773,3145.1,3144.0,1.0402]
[1763257416376,1.6773,3145.1,3144.1,3.72338]
[1763257416564,1.6773,3145.1,3144.2,0.51556]
[1763257416768,1.6773,3145.1,3144.1,3.2078]
[1763257416960,1.6773,3145.1,3144.1,3.72337]
[1763257417165,3.2078,3144.9,3144.1,3.2078]
[1763257417469,1.6773,3144.3,3144.2,0.00476516]
[1763257418262,3.2078,3144.9,3144.2,0.00476516]
[1763257418461,3.2078,3144.9,3144.5,0.51551]
[1763257418864,3.2078,3144.9,3144.2,0.00476516]
[1763257419670,3.2078,3144.9,3144.2,0.52031516]
[1763257420476,3.2078,3144.9,3144.2,0.00476516]
[1763257420865,3.2078,3144.9,3144.2,0.52032516]
[1763257421167,3.2078,3144.9,3144.3,0.51555]
[1763257421362,3.2078,3144.9,3144.3,0.51553]
[1763257421566,3.2078,3144.9,3144.5,0.51551]
[1763257421766,3.2078,3144.9,3144.3,0.51553]
[1763257422269,3.2078,3144.9,3144.2,0.00476516]
[1763257422473,3.2078,3145.3,3144.9,0.51544]
[1763257422772,3.2078,3145.3,3144.8,0.51546]
[1763257423565,3.2078,3145.3,3144.6,1.58669]
[1763257423773,1.6773,3144.6,3144.5,3.2078]
[1763257423972,0.9294,3145.2,3144.5,4.9687]
[1763257424273,0.9294,3145.2,3144.5,5.4842]
[1763257424774,1.6773,3144.6,3144.5,3.2078]
[1763257425369,3.2078,3145.3,3144.7,0.51548]
[1763257425562,3.2078,3145.3,3144.6,1.0712]
[1763257426572,0.9294,3145.2,3144.5,3.2078]
[1763257427075,0.9294,3145.2,3144.6,1.0712]
[1763257427875,0.9294,3145.2,3144.5,3.72331]
[1763257428068,0.9294,3145.2,3144.6,0.5155]
[1763257428266,3.2078,3145.3,3144.8,0.51546]
[1763257428483,3.2078,3145.3,3144.6,0.5155]
[1763257429376,1.6773,3144.5,3144.4,0.51553]
[1763257429575,3.2078,3144.9,3144.2,0.52032516]
[1763257429965,1.0298,3145.0,3144.5,0.51551]
[1763257430376,1.0298,3145.0,3144.5,3.72331]
[1763257431279,1.6773,3144.5,3144.4,1.137779]
[1763257431471,1.0298,3145.0,3144.4,1.653309]
[1763257432067,3.2078,3145.3,3144.5,1.0712]
[1763257432381,3.2078,3145.3,3144.5,2.208979]
[1763257432885,3.2078,3145.3,3144.6,1.137779]
[1763257433180,3.2078,3145.3,3144.7,1.137779]
[1763257433581,3.2078,3145.3,3145.2,1.7609]
[1763257433979,4.8851,3145.3,3144.7,1.137779]
[1763257434184,1.6773,3144.8,3144.7,1.69717697]
[1763257434380,1.29542767,3144.8,3144.7,1.69717697]
[1763257435186,1.29542767,3144.8,3144.6,0.5155]
[1763257435484,3.2078,3145.3,3144.7,1.7609]
[1763257435678,3.2078,3145.3,3145.0,1.14363054]
[1763257435880,1.6773,3145.1,3145.0,1.14363054]
[1763257436184,3.2078,3145.3,3145.2,1.7609]
[1763257436385,3.2078,3145.3,3145.2,2.2763]
[1763257437373,3.2078,3145.3,3145.2,1.7609]
[1763257437678,3.2078,3145.3,3145.2,3.47615287]
[1763257438280,0.00805265,3145.6,3145.5,2.6598]
[1763257438794,0.00805265,3145.6,3145.5,3.80297488]
[1763257440873,1.60405265,3145.6,3145.5,1.14317488]
[1763257441888,1.596,3145.5,3145.4,1.14317488]
[1763257442387,0.00805265,3145.6,3145.5,2.5316]
[1763257442593,0.00805265,3145.6,3145.4,1.14317488]
[1763257442781,0.00805265,3145.6,3145.4,2.77587488]